Cogmind - Beta 16.1 @@@ ROGUE MODE // 2026.03.01 @ 12:50:05 Player: Minty Result: Destroyed by Y-72 Warden with Quantum Rifle Performance ------------- Evolutions (8) 4000 Regions Visited (21) 4200 Robots Destroyed (163) 815 Value Destroyed (5801) 5801 Prototype IDs (60) 1200 Alien Tech Used (0) 0 Bonus (4583) 4583 TOTAL SCORE: 20599 Bonus ------- High Alert Combat Kills 325 Follower Combat Kills 2027 Hunted by Unchained 500 Network Hubs Disabled 400 Aligned with FarCom 300 Built Enhanced Grunts 300 A7 Reached Mainframe 300 Met R17 at Cetus 500 Friendly Fire -69 Cogmind --------- Core Integrity 0/1450 Matter 0/300 Energy 99/100 System Corruption 0% Temperature Cool (9) Movement Core (50) Location -2/Research Parts ------- > --- POWER (2) -------- (None) > --- PROPULSION (6) --- (None) > --- UTILITY (12) ----- (None) > --- WEAPON (3) ------- (None) > --- INVENTORY (5) ---- Light Quantum Reactor Point Singularity Launcher Point Singularity Launcher Peak State ------------ > --- POWER ------------ Particle Reactor Quantum Reactor > --- PROPULSION ------- Centrium Heavy Treads Enhanced Flexi-carbon Leg > --- UTILITY ---------- Small Storage Unit Centrium Medium Armor Plating Centrium Medium Armor Plating Centrium Medium Armor Plating Powered Armor Experimental Thermal Shield Advanced Hacking Suite Advanced Hacking Suite Advanced Hacking Suite Advanced Hacking Suite > --- WEAPON ----------- Hypervelocity Coil Gun Advanced KE Penetrator Point Singularity Launcher > --- INVENTORY -------- Matter Compressor Improved Hacking Suite Hypervelocity Coil Gun Smartbomb Launcher Point Singularity Launcher [Rating: 135] Favorites ----------- Power Improved Ion Engine Engine Improved Ion Engine Power Core Enhanced Fission Core Reactor Quantum Reactor Propulsion Improved Cesium-ion Thruster Treads Centrium Heavy Treads Leg Enhanced Flexi-carbon Leg Wheel Wheel Hover Unit Hover Unit Flight Unit Improved Cesium-ion Thruster Utility Advanced Hacking Suite Device Experimental Thermal Shield Storage Medium Storage Unit Processor Salvage Targeting Computer Hackware Advanced Hacking Suite Protection Centrium Medium Armor Plating Weapon Hypervelocity Coil Gun Energy Gun EM Pulse Gun Ballistic Gun Hypervelocity Coil Gun Ballistic Cannon Light Cannon Launcher Mini Grenade Launcher Slashing Weapon Great Axe Piercing Weapon Lance Special Melee Weapon Improved Datajack Build | -11 -10 -10 -9 -9 -9 -8 -8 -7 -7 -7 -6 -5 -5 -5 -5 -5 -5 -5 -4 -3 -2 ------- Run | Yrd Mat Min Mat Min Exi Min Mat Fac Was Fac Fac Fac Was Fac Ext Cet Arc Hub Fac Res Res Slots Evolved 16 | . . . 2 . . . 2 2 . . 2 2 . . . . . . 2 2 2 Power 1 | . . . . . . . . . . . . . . . . . . . 1 . . Propulsion 4 | . . . 1 . . . 1 . . . . . . . . . . . . 2 . Utility 10 | . . . 1 . . . 1 2 . . 2 2 . . . . . . . . 2 Weapon 1 | . . . . . . . . . . . . . . . . . . . 1 . . Parts Attached 155 | . 9 1 21 . 1 1 22 9 . 8 12 5 5 13 11 12 1 . 8 10 6 Power 15 | . 1 . 2 . . . 1 1 . 1 1 . 1 1 . 1 . . 1 2 2 Engine 6 | . 1 . 2 . . . 1 1 . . 1 . . . . . . . . . . Core 2 | . . . . . . . . . . 1 . . . 1 . . . . . . . Reactor 7 | . . . . . . . . . . . . . 1 . . 1 . . 1 2 2 Propulsion 43 | . 2 . 8 . . . 11 1 . 4 5 . . 1 1 2 1 . 4 3 . Treads 1 | . . . . . . . . . . . . . . . . 1 . . . . . Leg 2 | . . . . . . . . . . . . . . . . 1 1 . . . . Wheel 6 | . . . 3 . . . 3 . . . . . . . . . . . . . . Hover 10 | . 2 . 5 . . . 1 . . . . . . . . . . . 2 . . Flight 24 | . . . . . . . 7 1 . 4 5 . . 1 1 . . . 2 3 . Utility 61 | . 3 1 4 . 1 . 3 7 . 2 4 5 2 7 6 6 . . 3 4 3 Device 17 | . 1 1 3 . . . 1 1 . . 2 . 2 2 . 2 . . 1 1 . Storage 4 | . 2 . . . . . . . . . . . . . 1 1 . . . . . Processor 13 | . . . 1 . 1 . 2 1 . . . . . 1 3 . . . . 2 2 Hackware 22 | . . . . . . . . 5 . 2 2 5 . 3 2 . . . 1 1 1 Protection 5 | . . . . . . . . . . . . . . 1 . 3 . . 1 . . Artifact . | . . . . . . . . . . . . . . . . . . . . . . Weapon 36 | . 3 . 7 . . 1 7 . . 1 2 . 2 4 4 3 . . . 1 1 Energy Gun 10 | . 2 . 4 . . . 2 . . . 1 . 1 . . . . . . . . Energy Cannon . | . . . . . . . . . . . . . . . . . . . . . . Ballistic Gun 10 | . . . 2 . . 1 3 . . . . . . . 1 2 . . . 1 . Ballistic Cannon 1 | . 1 . . . . . . . . . . . . . . . . . . . . Launcher 7 | . . . 1 . . . 1 . . . . . 1 2 1 1 . . . . . Special Weapon . | . . . . . . . . . . . . . . . . . . . . . . Impact Weapon . | . . . . . . . . . . . . . . . . . . . . . . Slashing Weapon 5 | . . . . . . . . . . 1 1 . . 1 2 . . . . . . Piercing Weapon 2 | . . . . . . . . . . . . . . 1 . . . . . . 1 Special Melee Weapon 1 | . . . . . . . 1 . . . . . . . . . . . . . . Unidentified Prototypes 21 | . . . 3 . . . 4 . . . 2 . 3 2 . 5 . . . 1 1 Corrupted Parts 3 | . . . . . . . . 2 . . . . . . . 1 . . . . . System Corruption 13 | . . . . . . . . 4 . . . . . . . 9 . . . . . Parts Lost 70 | . 2 1 11 . . . 11 2 . 5 1 1 . 5 4 5 . . 8 6 8 Power 10 | . 1 . 1 . . . 1 1 . 1 1 . . . 1 . . . 1 1 1 Propulsion 25 | . . . 5 . . . 8 . . 2 . . . 1 1 2 . . . 3 3 Utility 24 | . . 1 3 . . . . 1 . 1 . 1 . 4 1 3 . . 4 2 3 Weapon 11 | . 1 . 2 . . . 2 . . 1 . . . . 1 . . . 3 . 1 Highest Loss Streak 5 | . 2 1 4 . . . 4 2 . 4 1 1 . 3 1 4 . . 5 3 3 To Critical Strikes . | . . . . . . . . . . . . . . . . . . . . . . Average Backups 6 | . 6 5 5 7 7 6 6 4 6 7 7 5 5 7 8 6 6 7 5 3 3 Power . | . . . . . . . . . . . . . . . . . . 1 . . . Propulsion 1 | . 3 4 1 . . . . . 2 2 1 3 3 2 1 . . . . . . Utility 2 | . . 1 3 5 4 4 4 2 2 2 3 1 1 1 1 1 1 2 1 . . Weapon 2 | . . . 1 1 3 2 2 2 2 2 2 1 1 3 4 5 4 4 3 3 2 Tool/Special . | . . . . . . . . . . . . . . . . . . . . . . Unused Backups 16 | . 5 . 2 . 2 . . . . . 4 . . 1 1 . 1 . . . . Power . | . . . . . . . . . . . . . . . . . . . . . . Propulsion 9 | . 4 . 2 . . . . . . . 2 . . . 1 . . . . . . Utility 3 | . . . . . 1 . . . . . 1 . . . . . 1 . . . . Weapon 4 | . 1 . . . 1 . . . . . 1 . . 1 . . . . . . . Tool/Special . | . . . . . . . . . . . . . . . . . . . . . . Average Slot Usage (%) 80 | . 97 97 91 88 67 67 72 82 92 91 92 93 94 85 87 65 91 90 75 32 28 Engine 4 | . 13 14 10 11 11 11 6 2 7 . 1 5 . . . . . . . . . Reactor 1 | . . . . . . . . . . . . . 4 5 2 . 5 5 6 2 2 Leg 3 | . 26 . . . . . . . . . . . . . . 1 8 7 4 . . Wheel 3 | . . . 7 22 22 22 13 . . . . . . . . . . . . . . Hover 3 | . 1 28 23 . . . . . . . . . . . . . . . 1 2 . Flight 10 | . . . . . . . 7 30 30 29 26 23 23 23 23 8 . . . 10 4 Device 5 | . 11 11 15 22 12 11 2 . . . 2 . . 3 . 1 11 11 5 . . Storage 6 | . 14 14 11 11 11 11 9 7 7 7 6 5 5 5 5 5 5 5 4 . . Processor 4 | . . . 2 . 9 11 18 4 7 1 . . . 2 9 . . . . 1 13 Hackware 19 | . . . . . . . . 29 30 35 42 51 52 37 38 32 23 23 19 13 5 Protection 3 | . . . . . . . . . . . . . . . . 3 17 17 16 . . Energy Gun 2 | . 13 14 11 . . . 1 . . . 1 . . . . . . . . . . Ballistic Gun 5 | . 14 14 7 11 1 1 8 . . . . . . . . 3 11 11 10 . 2 Launcher 1 | . . . 1 11 . . 4 6 7 . . . . . . . . . . . . Slashing Weapon 1 | . . . . . . . . . . 6 6 5 5 5 2 . . . . . . Peak Build Rating 135 | . 7 8 17 15 15 17 28 36 36 40 59 66 78 87 84 118 125 125 135 87 98 Average Rating 52 | . 6 7 13 15 11 12 20 31 36 37 50 63 68 69 75 66 121 120 111 52 56 On Entrance 47 | 6 6 7 8 15 15 12 17 26 36 36 35 55 65 69 78 73 118 125 118 38 82 Avg Prop Armor Cover (%) 5 | . . . 11 . . . 6 3 . . 2 . . . . 1 2 1 13 1 . Naked Turns 25 | . . . . . . . . . . . . . . . . . . . . . 25 Heaviest Build 101 | 13 20 12 21 24 24 25 26 19 16 19 23 23 23 35 27 61 61 61 101 20 21 Greatest Support 80 | 20 20 12 30 20 20 20 40 20 20 20 23 25 23 25 25 80 80 80 80 48 48 Greatest Overweight (x) 6 | . 2 . 2 1 1 1 6 . . 1 . . . 1 1 2 . . 1 3 1 Average Overweight (x) . | . . . . . . . . . . . . . . . . . . . . . . Largest Inventory Capacity 10 | . 10 8 8 10 10 10 10 10 10 10 10 10 10 10 10 8 8 8 8 5 5 Average Capacity 8 | . 9 8 8 9 10 10 10 10 10 10 10 10 9 10 9 8 8 8 7 5 5 Most Carried 10 | . 7 7 8 9 10 10 10 10 9 10 10 9 6 10 10 8 8 8 7 5 5 Average Carried 7 | . 6 6 7 8 9 9 9 7 9 9 9 6 5 7 9 7 7 8 5 4 4 Final Capacity 10 | 8 8 8 8 10 10 10 10 10 10 10 10 10 10 10 8 8 8 8 5 5 5 Final Carried 10 | 6 5 7 7 9 10 9 10 9 9 10 10 5 6 9 8 8 8 8 5 4 3 Class Distribution -------------------- 28% | Mutant 21% | Wizard-Sprinter 19% | Hacker-Mutant 8% | Scavenger-Mutant 7% | Hacker-Sprinter 6% | Wizard-Mutant 5% | Hacker-Tank Dominant Class ---------------- Mutant | -10/Materials Mutant | -10/Mines Mutant | -9/Materials Mutant | -9/Mines Mutant | -9/Exiles Mutant | -8/Mines Mutant | -8/Materials Hacker-Sprinter | -7/Factory Hacker-Sprinter | -7/Waste Hacker-Sprinter | -7/Factory Wizard-Sprinter | -6/Factory Wizard-Sprinter | -5/Factory Wizard-Sprinter | -5/Waste Wizard-Sprinter | -5/Factory Wizard-Sprinter | -5/Extension Wizard-Mutant | -5/Cetus Hacker-Mutant | -5/Archives Hacker-Mutant | -5/Hub_04(d) Hacker-Tank | -4/Factory Hacker-Mutant | -3/Research Hacker-Mutant | -2/Research Resources | -11 -10 -10 -9 -9 -9 -8 -8 -7 -7 -7 -6 -5 -5 -5 -5 -5 -5 -5 -4 -3 -2 ----------- Run | Yrd Mat Min Mat Min Exi Min Mat Fac Was Fac Fac Fac Was Fac Ext Cet Arc Hub Fac Res Res Matter Collected 5090 | 171 197 80 533 10 . 91 440 214 . 317 120 45 80 626 427 371 371 252 415 297 33 Remotely 200 | . 155 45 . . . . . . . . . . . . . . . . . . . Salvage Created 4950 | . 372 93 1419 . . 45 678 152 . 476 415 106 . 320 517 . 132 117 85 . 23 Parts 293 | . 18 13 93 . . . 56 11 . 22 24 5 . 14 21 . 7 4 3 . 2 Haulers Intercepted 6 | . . . 3 . . . 2 . . . 1 . . . . . . . . . . Recyclers Shooed 2 | . . . 1 . . . . 1 . . . . . . . . . . . . . Parts Field Recycled . | . . . . . . . . . . . . . . . . . . . . . . Retrieved Matter . | . . . . . . . . . . . . . . . . . . . . . . Parts Self-Destructed . | . . . . . . . . . . . . . . . . . . . . . . Prevented . | . . . . . . . . . . . . . . . . . . . . . . Parts Restored . | . . . . . . . . . . . . . . . . . . . . . . Kills | -11 -10 -10 -9 -9 -9 -8 -8 -7 -7 -7 -6 -5 -5 -5 -5 -5 -5 -5 -4 -3 -2 ------- Run | Yrd Mat Min Mat Min Exi Min Mat Fac Was Fac Fac Fac Was Fac Ext Cet Arc Hub Fac Res Res Combat Hostiles Destroyed 107 | . 7 3 25 . . . 19 5 . 2 4 2 . 10 10 1 . 3 9 . 7 Melee 14 | . . . . . . . . . . . 4 2 . 4 4 . . . . . . Guns 39 | . 5 3 21 . . . 7 . . . . . . . . . . 1 2 . . AOE 53 | . 2 . 4 . . . 12 5 . 2 . . . 6 6 1 . 2 6 . 7 Classes Destroyed 16 | . 6 1 3 . . . 1 1 . . 1 . . . 1 . . . 1 . 1 Worker 6 | . 1 1 1 . . . . . . 2 . . . . . . . 1 . . . Builder 8 | . . 1 3 . . . 2 1 . 1 . . . . . . . . . . . Tunneler 5 | . 1 1 . . . . 1 . . 1 . . . 1 . . . . . . . Hauler 6 | . . . 3 . . . 2 . . . 1 . . . . . . . . . . Recycler 8 | . 1 . 1 . . . . 1 . 3 . . . . 2 . . . . . . Operator 14 | . 1 . 4 . . . 2 . . 1 3 . . . 1 . 1 . . . 1 Watcher 6 | . . . . . . . . 1 . 1 1 . . 1 1 1 . . . . . Swarmer 27 | . 3 3 3 . . . 7 3 . . . . . 4 . . . . 4 . . Cutter 4 | . . . . . . . . . . . . . . . . . . . . . 4 Grunt 47 | . 4 . 13 . . . 7 2 . 2 2 2 . 3 7 . . 2 . . 3 Duelist 3 | . . . 1 . . . 1 . . . . . . . 1 . . . . . . Protector 1 | . . . . . . . . . . . . . . . 1 . . . . . . Sentry 14 | . . . 8 . . . 3 . . . . . . . 2 . . 1 . . . Hunter 9 | . . . . . . . 1 . . . . . . 4 . . . . 4 . . Programmer 2 | . . . . . . . . . . . 2 . . . . . . . . . . Behemoth 1 | . . . . . . . . . . . . . . . . . . . 1 . . Cetus Guard 1 | . . . . . . . . . . . . . . . . 1 . . . . . Enhanced Grunt 1 | . . . . . . . . . . . . . . . . . 1 . . . . Best Kill Streak 7 | . 5 5 7 . . . 7 7 . 5 2 1 . 4 6 2 1 3 4 . 4 Combat Bots Only 6 | . 5 3 6 . . . 5 5 . 2 2 1 . 4 5 1 . 2 4 . 3 Max Kills in Single Turn 5 | . 2 1 2 . . . 5 2 . 3 1 1 . 4 4 1 1 2 4 . 3 Gunslinging . | . . . . . . . . . . . . . . . . . . . . . . Exploded 4 | . 2 . 1 . . . 4 1 . 2 . . . 4 4 1 . 2 4 . 3 Melee 1 | . . . . . . . . . . . 1 1 . 1 1 . . . . . . Uniques/NPCs Destroyed . | . . . . . . . . . . . . . . . . . . . . . . Combat | -11 -10 -10 -9 -9 -9 -8 -8 -7 -7 -7 -6 -5 -5 -5 -5 -5 -5 -5 -4 -3 -2 -------- Run | Yrd Mat Min Mat Min Exi Min Mat Fac Was Fac Fac Fac Was Fac Ext Cet Arc Hub Fac Res Res Hostile Shots Fired 944 | . 35 14 102 . . . 78 44 . 38 22 22 . 37 66 24 11 29 264 61 97 Missed 376 | . 7 5 37 . . . 28 25 . 17 10 11 . 16 39 9 1 6 89 34 42 Hits 568 | . 28 9 65 . . . 50 19 . 21 12 11 . 21 27 15 10 23 175 27 55 Melee 19 | . . . . . . . 3 . . . . . . 1 . . . . . . 15 Projectile 549 | . 28 9 65 . . . 47 19 . 21 12 11 . 20 27 15 10 23 175 27 40 AOE 4 | . . . . . . . . . . . . . . . . . . . . . 4 Critical Strikes 32 | . . . 3 . . . 3 . . 1 1 2 . . 1 3 . 1 6 2 9 Part Disruptions 1 | . . . . . . . . . . . . . . . . . . . . 1 . Damage Taken 11089 | . 348 76 1207 . . . 846 232 . 293 206 204 . 457 529 413 238 441 2846 615 2138 Core 3381 | . 20 . 299 . . . 172 69 . 67 64 58 . 85 242 93 19 12 445 282 1454 Absorbed by Shields 147 | . . . . . . . . . . . . 5 . . 30 112 . . . . . Ignored by Resistances 163 | . . . . . . . . . . . . . . . . . 27 124 12 . . Regen/Repaired (Parts) 328 | . . . . . . . . . . . . 27 88 34 . . . . 179 . . Core Remaining (%) 71 | 100 . 92 . . . 25 68 . . 80 92 . . . . . . 49 61 78 . Volleys Fired 284 | . 38 11 92 2 . 1 48 11 2 . . . . 7 6 6 7 14 25 . 14 Largest 3 | . 2 2 2 1 . 1 2 1 1 . . . . 1 1 2 2 2 3 . 1 Hottest 105 | . 60 60 101 30 . 23 75 30 30 . . . . 55 80 70 70 70 105 . 55 Shots Fired 467 | . 76 21 158 2 . 1 70 11 2 . . . . 7 6 7 15 27 50 . 14 Gun 391 | . 71 21 152 . . 1 50 . . . . . . . . 3 15 26 43 . 9 Cannon 5 | . 5 . . . . . . . . . . . . . . . . . . . . Launcher 71 | . . . 6 2 . . 20 11 2 . . . . 7 6 4 . 1 7 . 5 Special . | . . . . . . . . . . . . . . . . . . . . . . Kinetic 260 | . 43 11 62 . . 1 47 . . . . . . . . 3 15 26 43 . 9 Thermal 42 | . 1 10 31 . . . . . . . . . . . . . . . . . . Explosive 70 | . . . 6 2 . . 20 11 2 . . . . 7 5 4 . 1 7 . 5 Electromagnetic 95 | . 32 . 59 . . . 3 . . . . . . . 1 . . . . . . Robot Hit Streak 19 | . 14 7 19 . . 2 12 19 . . . . . 2 10 4 5 3 6 . 2 Robot Miss Streak 5 | . 5 3 5 . . . 3 2 1 . . . . 2 . 1 3 4 4 . 3 Penetration Max 2 | . . . . . . . . . . . . . . . . . . 1 2 . . Secondary Targets 4 | . 3 . 1 . . . . . . . . . . . . . . . . . . Max Gunslinging Chain 1 | . 1 . 1 . . . . . . . . . . . . . . . . . . Shots Hit Robots 364 | . 43 11 124 . . 1 48 9 . 9 16 3 . 17 22 5 8 12 30 . 6 Core Hits 243 | . 16 6 60 . . 1 39 10 . 18 9 3 . 15 21 7 2 6 19 . 11 Critical Kills 7 | . . 1 . . . . . . . . . . . . . . 2 2 2 . . Critical Parts Destroyed 13 | . . . . . . . 1 . . . . . . . . 1 2 3 6 . . Critical Strikes 30 | . . 1 . . . . 1 . . . 1 . . 3 3 1 7 5 8 . . Destroy 23 | . . 1 . . . . 1 . . . . . . . . 1 7 5 8 . . Sever 7 | . . . . . . . . . . . 1 . . 3 3 . . . . . . Melee Attacks 83 | . . . . . . . . . . 12 21 4 . 24 22 . . . . . . Impact . | . . . . . . . . . . . . . . . . . . . . . . Slashing 83 | . . . . . . . . . . 12 21 4 . 24 22 . . . . . . Piercing . | . . . . . . . . . . . . . . . . . . . . . . Sneak Attacks 18 | . . . . . . . . . . 7 3 1 . 4 3 . . . . . . Combat Hostiles 2 | . . . . . . . . . . . . 1 . 1 . . . . . . . Follow-up Attacks . | . . . . . . . . . . . . . . . . . . . . . . Damage Inflicted 17985 | . 637 130 2287 . . 21 1740 1113 288 1169 858 189 . 2109 2734 632 88 460 1828 . 1702 Guns 3858 | . 497 130 1922 . . 21 626 . . . . . . . . 30 82 137 338 . 75 Cannons 47 | . 47 . . . . . . . . . . . . . . . . . . . . Explosions 10349 | . 70 . 365 . . . 1106 1113 288 511 . . . 1273 1753 602 . 307 1348 . 1613 Melee 3497 | . . . . . . . . . . 633 858 189 . 836 981 . . . . . . Ramming 234 | . 23 . . . . . 8 . . 25 . . . . . . 6 16 142 . 14 Kinetic 2384 | . 313 88 737 . . 21 563 . . . . . . . . 30 82 137 338 . 75 Thermal 848 | . 70 42 593 . . . . . . . . . . . . . . . 143 . . Explosive 9646 | . . . 165 . . . 1106 1113 288 250 . . . 1273 1724 602 . 307 1205 . 1613 Electromagnetic 1376 | . 231 . 792 . . . 63 . . 261 . . . . 29 . . . . . . Impact . | . . . . . . . . . . . . . . . . . . . . . . Slashing 3497 | . . . . . . . . . . 633 858 189 . 836 981 . . . . . . Piercing . | . . . . . . . . . . . . . . . . . . . . . . Highest Corruption 17 | . . . 10 10 10 10 . 4 9 14 . . . 10 8 17 17 17 3 4 . Average Corruption 7 | . . . 5 10 10 10 . 3 7 13 . . . 6 7 9 17 17 1 3 . Corruption Purged 5 | . . . . . . . . . . . . . . 5 . . . . . . . Corruption Blocked 2 | . . . . . . . . . . . . . . . . . . . . . 2 Effects 132 | . . . 20 2 11 4 . 7 2 13 . . . 11 11 15 10 17 5 4 . Message Errors 31 | . . . 3 1 6 3 . 1 . 5 . . . . 1 6 . 3 2 . . Matter Fused 33 | . . . 3 1 2 1 . 2 1 1 . . . 5 3 2 4 5 1 2 . Heat Flow Errors 21 | . . . 2 . 1 . . 2 1 3 . . . 2 4 1 2 2 . 1 . Energy Discharges 11 | . . . 4 . . . . . . 2 . . . 1 1 . . 2 1 . . Parts Rejected 2 | . . . . . . . . . . . . . . . . 1 . 1 . . . Parts Fused 1 | . . . . . . . . . . . . . . 1 . . . . . . . Data Loss (minor) 15 | . . . 3 . 2 . . . . 1 . . . . 1 3 1 3 . 1 . Data Loss (major) 4 | . . . . . . . . 1 . . . . . 1 1 . . . 1 . . Misfires 3 | . . . . . . . . . . . . . . . . 1 2 . . . . Alerts 3 | . . . . . . . . 1 . . . . . 1 . . . 1 . . . Misdirections 4 | . . . 3 . . . . . . 1 . . . . . . . . . . . Weapon Failures 4 | . . . 2 . . . . . . . . . . . . 1 1 . . . . Overload Shots . | . . . . . . . . . . . . . . . . . . . . . . Overflow Damage 1191 | . 19 . 18 . . . 37 47 . 239 38 . . 263 180 . . 126 82 . 142 Projectiles . | . . . . . . . . . . . . . . . . . . . . . . Explosions 715 | . 19 . 18 . . . 37 47 . 11 . . . 197 37 . . 126 81 . 142 Melee 476 | . . . . . . . . . . 228 38 . . 66 143 . . . 1 . . Knockbacks 3 | . . . . . . . . . . . . . . . . . . . 3 . . Impact 3 | . . . . . . . . . . . . . . . . . . . 3 . . Kinetic . | . . . . . . . . . . . . . . . . . . . . . . Secondary . | . . . . . . . . . . . . . . . . . . . . . . Self-Inflicted Damage 388 | . 14 . 80 . . . 88 . . 12 . . . . . 15 . . 21 . 158 Shots 11 | . 1 . 4 . . . 3 . . . . . . . . 1 . . 1 . 1 Rammed 46 | . . . . . . . 1 . . 1 . . . . . . 1 3 35 . 5 Targets Rammed 50 | . 4 . . . . . 1 . . 1 . . . . . . 1 3 35 . 5 Kicked 4 | . 4 . . . . . . . . . . . . . . . . . . . . Crushed . | . . . . . . . . . . . . . . . . . . . . . . Highest Temperature 327 | . 99 30 285 . 125 . 24 161 265 282 . 27 . 254 234 205 197 149 327 134 2 Average Temperature 75 | . 53 11 50 . 81 . 8 75 127 139 . 16 . 98 72 103 103 63 110 73 2 Received Heat Transfer 1587 | . 147 . 378 . . . 297 24 . 30 63 105 . 27 111 . 27 198 18 54 108 Effects 2 | . . . . . . . . . . . . . . 1 . . . . 1 . . Shutdowns 1 | . . . . . . . . . . . . . . . . . . . 1 . . Energy Bleed 1 | . . . . . . . . . . . . . . 1 . . . . . . . Siege Activations . | . . . . . . . . . . . . . . . . . . . . . . Martial Activations . | . . . . . . . . . . . . . . . . . . . . . . Shielding Activations . | . . . . . . . . . . . . . . . . . . . . . . Robots Disrupted . | . . . . . . . . . . . . . . . . . . . . . . Combat Hostiles . | . . . . . . . . . . . . . . . . . . . . . . Robots Corrupted 1 | . . . . . . . . . . . . . . . . . . . 1 . . Combat Hostiles 1 | . . . . . . . . . . . . . . . . . . . 1 . . Parts Fried 6 | . 1 . 3 . . . 1 . . . . . . 1 . . . . . . . Impact Corruptions 1 | . . . . . . . . . . . . . . . . . . . 1 . . Robots Melted . | . . . . . . . . . . . . . . . . . . . . . . Combat Hostiles . | . . . . . . . . . . . . . . . . . . . . . . Parts Melted 3 | . 1 . 2 . . . . . . . . . . . . . . . . . . Heat Transferred 1377 | . 100 100 1077 . . . . . . . . . . . . . . . 100 . . Parts Sabotaged . | . . . . . . . . . . . . . . . . . . . . . . Parts Stolen . | . . . . . . . . . . . . . . . . . . . . . . Parts Stripped . | . . . . . . . . . . . . . . . . . . . . . . Power Chain Reactions 8 | . 1 . 6 . . . . . . . . . . 1 . . . . . . . Alert | -11 -10 -10 -9 -9 -9 -8 -8 -7 -7 -7 -6 -5 -5 -5 -5 -5 -5 -5 -4 -3 -2 ------- Run | Yrd Mat Min Mat Min Exi Min Mat Fac Was Fac Fac Fac Was Fac Ext Cet Arc Hub Fac Res Res Maximum Alert Level 3 | . . . 2 . . . 2 1 . 1 1 1 . 3 2 2 1 2 1 . 2 Low Security (%) 51 | . 100 100 32 100 . 100 25 21 100 26 81 57 100 19 32 . 14 33 78 100 83 Level 1 34 | . . . 62 . . . 67 78 . 73 18 42 . 11 25 38 85 58 21 . 10 Level 2 9 | . . . 5 . . . 6 . . . . . . 19 42 61 . 8 . . 5 Level 3 3 | . . . . . . . . . . . . . . 48 . . . . . . . Level 4 . | . . . . . . . . . . . . . . . . . . . . . . Level 5 . | . . . . . . . . . . . . . . . . . . . . . . High Security . | . . . . . . . . . . . . . . . . . . . . . . Max Security . | . . . . . . . . . . . . . . . . . . . . . . Peak Influence 999 | . 115 60 456 174 . 5 408 308 107 394 248 328 111 999 683 474 310 441 309 187 448 Initial 480 | . . 17 19 174 . . 1 163 102 67 182 43 111 21 480 376 164 80 207 147 100 Average 227 | . 33 19 229 168 . . 265 253 102 286 135 162 74 568 326 406 254 223 160 104 176 Influence Increases 8703 | . 214 85 865 14 . 5 782 260 15 547 357 450 . 1514 1133 328 186 513 495 252 688 Destroy 0b10 Robot/C 3260 | . 140 60 500 . . . 380 100 . 180 100 80 . 460 520 160 80 180 180 . 140 Destroy 0b10 Robot/NC 305 | . 20 15 60 . . 5 35 15 . 45 25 . . 25 25 10 10 10 . . 5 Destroy Leader 594 | . 30 10 156 . . . 84 12 . 42 34 20 . 62 52 . . 32 40 . 20 Allied During Kill 839 | . . . . . . . . . . 17 . 18 . 372 156 93 73 110 . . . Successful Hack 365 | . 4 . 22 . . . 31 4 . 87 31 . . 29 . 1 . 12 12 57 75 Select Force Hacks 220 | . . . . . . . . . . . 60 . . 30 . . . 100 30 . . Disable Machine 510 | . . . 15 . . . 45 30 . 60 . 15 . 165 105 . 15 . 60 . . Anti-Garrison Action 300 | . . . . . . . . . . . . . . 150 . . . . . . 150 Destroy Structure 905 | . 5 . 67 14 . . 132 54 15 11 2 2 . 176 80 64 8 54 128 . 93 Partial Spotted 105 | . 15 . 15 . . . . . . . 30 30 . . . . . . . 15 . Lose Combat Pursuer 1200 | . . . 30 . . . 75 45 . 105 75 285 . 45 195 . . 15 45 180 105 Miscellaneous 100 | . . . . . . . . . . . . . . . . . . . . . 100 Influence Decreases 8265 | . 168 81 467 294 168 . 427 327 211 270 642 221 287 564 1441 589 368 320 638 353 429 Entered New Map 3003 | . . 29 31 274 168 . 4 197 191 30 192 46 207 10 501 297 248 150 216 133 79 Time Decay 3097 | . 148 42 326 20 . . 313 110 20 150 230 120 80 254 170 222 100 170 342 160 120 Lost Part 700 | . 20 10 110 . . . 110 20 . 50 10 10 . 50 40 50 . . 80 60 80 Lost Ally 715 | . . . . . . . . . . 40 60 45 . 250 280 20 20 . . . . Purge Threat 750 | . . . . . . . . . . . 150 . . . 450 . . . . . 150 Squads Dispatched 69 | . 1 . 6 . . . 3 3 . 4 9 5 . 11 6 . . 4 5 6 6 Investigation 37 | . . . 1 . . . 1 2 . 3 7 4 . 6 4 . . 3 2 3 1 Extermination 7 | . . . . . . . . . . . 1 1 . 1 . . . . 2 1 1 Reinforcement 20 | . 1 . 5 . . . 2 1 . 1 1 . . 2 1 . . 1 1 2 2 Assault 5 | . . . . . . . . . . . . . . 2 1 . . . . . 2 Garrison . | . . . . . . . . . . . . . . . . . . . . . . Intercept . | . . . . . . . . . . . . . . . . . . . . . . Searches Triggered . | . . . . . . . . . . . . . . . . . . . . . . Construction Impeded 6 | . . . 1 . . . 2 1 . . . . . . 1 . . . 1 . . Haulers Reinforced 2 | . . . . . . . . . . . 1 . . . . . . . . 1 . Active Scanning Responses . | . . . . . . . . . . . . . . . . . . . . . . Cargo Convoy Interrupts . | . . . . . . . . . . . . . . . . . . . . . . Stealth | -11 -10 -10 -9 -9 -9 -8 -8 -7 -7 -7 -6 -5 -5 -5 -5 -5 -5 -5 -4 -3 -2 --------- Run | Yrd Mat Min Mat Min Exi Min Mat Fac Was Fac Fac Fac Was Fac Ext Cet Arc Hub Fac Res Res Distress Signals 25 | . 3 . 5 . . . 1 . . 2 . . . 1 2 2 . 1 5 3 . Communications Jammed . | . . . . . . . . . . . . . . . . . . . . . . Distress Signals . | . . . . . . . . . . . . . . . . . . . . . . Times Spotted 331 | . 16 3 42 . . . 32 11 6 25 16 24 1 19 37 10 14 13 24 20 18 Peak Tracking Total 15 | . 6 2 7 . . . 5 5 6 7 4 13 . 4 15 5 2 4 8 12 8 Tactical Retreats 40 | . . . 2 . . . 3 3 . 5 3 3 . 2 6 . . 1 3 4 5 Traps | -11 -10 -10 -9 -9 -9 -8 -8 -7 -7 -7 -6 -5 -5 -5 -5 -5 -5 -5 -4 -3 -2 ------- Run | Yrd Mat Min Mat Min Exi Min Mat Fac Was Fac Fac Fac Was Fac Ext Cet Arc Hub Fac Res Res Traps Triggered 7 | . . . . . . . . 2 . . . 3 . . . . . . 1 1 . Indirectly . | . . . . . . . . . . . . . . . . . . . . . . Trap Hack Attempts . | . . . . . . . . . . . . . . . . . . . . . . Triggered . | . . . . . . . . . . . . . . . . . . . . . . Disarmed 4 | . . . . . . . . . . . . . . . 4 . . . . . . Reprogrammed 2 | . . . . . . . . . . 2 . . . . . . . . . . . Reused . | . . . . . . . . . . . . . . . . . . . . . . Traps Extracted . | . . . . . . . . . . . . . . . . . . . . . . Installed . | . . . . . . . . . . . . . . . . . . . . . . Triggered . | . . . . . . . . . . . . . . . . . . . . . . Objects Rigged 3 | . . . . . . . . . . 3 . . . . . . . . . . . Exploded 3 | . . . . . . . . . . 3 . . . . . . . . . . . Machines | -11 -10 -10 -9 -9 -9 -8 -8 -7 -7 -7 -6 -5 -5 -5 -5 -5 -5 -5 -4 -3 -2 ---------- Run | Yrd Mat Min Mat Min Exi Min Mat Fac Was Fac Fac Fac Was Fac Ext Cet Arc Hub Fac Res Res Machines Disabled 36 | . . . 1 . . . 3 2 . 4 . 1 . 12 7 . 1 . 4 . 1 Max in Single Turn 4 | . . . 1 . . . 1 1 . 2 . . . 4 1 . . . 3 . 1 Garrison Access 5 | . . . . . . . . . . . . 1 . 2 . . . . . 1 1 Network Hub 2 | . . . . . . . . . . . . . . . . . . 2 . . . Machines Repaired . | . . . . . . . . . . . . . . . . . . . . . . Machines Dismantled . | . . . . . . . . . . . . . . . . . . . . . . Machines Sabotaged 2 | . . . . . . . . . . . . . . . . . . 2 . . . Overloaded Fab Kills . | . . . . . . . . . . . . . . . . . . . . . . Hacking | -11 -10 -10 -9 -9 -9 -8 -8 -7 -7 -7 -6 -5 -5 -5 -5 -5 -5 -5 -4 -3 -2 --------- Run | Yrd Mat Min Mat Min Exi Min Mat Fac Was Fac Fac Fac Was Fac Ext Cet Arc Hub Fac Res Res Machines Accessed 83 | . 4 . 3 . 1 . 8 4 . 10 7 6 . 9 10 1 . 4 4 7 5 Terminals 51 | . 4 . 2 . . . 7 1 . 6 3 2 . 2 10 1 . 4 2 3 4 Fabricators 10 | . . . . . . . . 1 . 3 1 2 . 2 . . . . . 1 . Repair Stations 2 | . . . . . . . . . . . . 1 . . . . . . 1 . . Recycling Units 5 | . . . . . . . . 1 . 1 1 . . 1 . . . . . 1 . Scanalyzers 9 | . . . 1 . . . 1 1 . . 2 . . 2 . . . . 1 1 . Garrison Access 5 | . . . . . . . . . . . . 1 . 2 . . . . . 1 1 Total Hacks 328 | . 17 . 11 . 1 . 22 13 . 36 41 24 . 41 48 1 . 7 21 26 19 Successful 225 | . 6 . 8 . 1 . 13 12 . 25 32 18 . 25 44 1 . 5 16 10 9 Failed 101 | . 11 . 3 . . . 9 1 . 11 9 6 . 15 3 . . 2 5 16 10 Catastrophic 11 | . . . 1 . . . 1 . . . 1 . . 1 . . . . 2 1 4 Database Lockouts 2 | . . . . . . . . . . . . . . 1 1 . . . . . . Manual 156 | . 15 . 7 . 1 . 14 2 . 19 20 9 . 8 24 1 . 7 11 10 8 Terminals 219 | . 17 . 9 . . . 19 1 . 22 29 14 . 9 48 1 . 7 14 13 16 Fabricators 39 | . . . . . . . . 3 . 10 1 8 . 15 . . . . . 2 . Repair Stations 5 | . . . . . . . . . . . . 1 . . . . . . 4 . . Recycling Units 17 | . . . . . . . . 4 . 4 2 . . 3 . . . . . 4 . Scanalyzers 37 | . . . 2 . . . 3 5 . . 9 . . 10 . . . . 3 5 . Garrison Access 10 | . . . . . . . . . . . . 1 . 4 . . . . . 2 3 Terminal Hacks 120 | . 2 . 3 . 1 . 7 1 . 11 20 9 . 7 37 1 . 2 9 3 7 Part Schematic 2 | . . . . . . . . . . . 1 . . . 1 . . . . . . Robot Analysis 10 | . . . 1 . . . 2 . . 1 2 1 . 1 1 . . . 1 . . Prototype ID Bank 7 | . . . 1 . . . . . . 1 3 . . . 2 . . . . . . Open Door 5 | . . . . . . . . . . . . . . . 4 1 . . . . . Open DSF 1 | . . . . . . . . 1 . . . . . . . . . . . . . Level Access Points 5 | . . . . . . . 1 . . 1 . . . . . . . 1 1 . 1 Branch Access Points 2 | . . . . . . . . . . . 1 . . 1 . . . . . . . Emergency Access Points 4 | . . . . . . . . . . 1 2 1 . . . . . . . . . Machine Index 4 | . . . . . . . . . . 1 1 1 . . . . . . . . 1 Terminal Index 7 | . 1 . . . . . 1 . . 1 1 . . . 2 . . . . 1 . Repair Station Index 1 | . . . . . . . . . . . . . . 1 . . . . . . . Recycling Unit Index 1 | . . . . . . . . . . . . . . . 1 . . . . . . Scanalyzer Index 1 | . . . . . . . . . . . . . . 1 . . . . . . . Garrison Index 1 | . . . . . . . . . . 1 . . . . . . . . . . . Alert Level 10 | . . . . . . . 2 . . 1 2 . . . 3 . . . . 1 1 Unreport Threat 6 | . . . . . . . . . . . 1 . . . 3 . . . . . 2 Locate Traps 6 | . . . . . . . . . . 2 1 . . . 1 . . . . 1 1 Disarm Traps 2 | . . . . . . . . . . . . . . . 2 . . . . . . Reprogram Traps 1 | . . . . . . . . . . 1 . . . . . . . . . . . Dispatch Records 4 | . . . . . . . . . . . . . . . 2 . . 1 1 . . Maintenance Status 1 | . . . . . . . . . . . . . . 1 . . . . . . . Security Status 2 | . . . . . . . . . . . 1 . . . 1 . . . . . . Surveillance Status 2 | . . . . . . . . . . . . . . . 2 . . . . . . Patrol Status 7 | . . . . . . . . . . . 1 1 . . 4 . . . 1 . . Transport Status 2 | . . . . . . . . . . . . . . 1 1 . . . . . . Recall Investigation 3 | . . . . . . . . . . . . 3 . . . . . . . . . Recall Extermination 3 | . . . . . . . . . . . . 1 . . 1 . . . 1 . . Recall Reinforcements 2 | . . . . . . . . . . . . . . . 1 . . . 1 . . Hauler Manifests 2 | . . . . . . . . . . . 1 . . . . . . . 1 . . Registered Components 3 | . . . . . . . . . . . . . . 1 1 . . . 1 . . Registered Prototypes 2 | . . . . . . . . . . . . 1 . . 1 . . . . . . Zone Layout 10 | . 1 . 1 . . . 1 . . . 2 . . . 3 . . . 1 . 1 Proto ID Catalog 1 | . . . . . 1 . . . . . . . . . . . . . . . . Fabricator Hacks 15 | . . . . . . . . 1 . 4 . 4 . 5 . . . . . 1 . Network Status 3 | . . . . . . . . 1 . 2 . . . . . . . . . . . Load Schematic 5 | . . . . . . . . . . 1 . 2 . 2 . . . . . . . Build 7 | . . . . . . . . . . 1 . 2 . 3 . . . . . 1 . Repair Station Hacks 4 | . . . . . . . . . . . . . . . . . . . 4 . . Scan Component 2 | . . . . . . . . . . . . . . . . . . . 2 . . Repair 2 | . . . . . . . . . . . . . . . . . . . 2 . . Recycling Unit Hacks 12 | . . . . . . . . 3 . 3 1 . . 2 . . . . . 3 . Recycle Component 1 | . . . . . . . . . . . . . . . . . . . . 1 . Process 3 | . . . . . . . . 1 . 1 . . . . . . . . . 1 . Report Inventory 4 | . . . . . . . . 1 . 1 1 . . 1 . . . . . . . Retrieve Matter 3 | . . . . . . . . 1 . 1 . . . . . . . . . 1 . Retrieve Components 1 | . . . . . . . . . . . . . . 1 . . . . . . . Scanalyzer 27 | . . . 2 . . . 3 5 . . 7 . . 7 . . . . 1 2 . Insert Component 6 | . . . . . . . . 2 . . 2 . . 2 . . . . . . . Analyze 8 | . . . . . . . . 2 . . 2 . . 4 . . . . . . . Retrieve Study 13 | . . . 2 . . . 3 1 . . 3 . . 1 . . . . 1 2 . Garrison Access Hacks 3 | . . . . . . . . . . . . 1 . 1 . . . . . 1 . Seal Access 3 | . . . . . . . . . . . . 1 . 1 . . . . . 1 . Unauthorized Hacks 44 | . 4 . 3 . . . 3 2 . 7 4 4 . 3 7 . . 3 2 . 2 Terminals 29 | . 4 . 3 . . . 3 . . 4 1 1 . . 7 . . 3 1 . 2 Track 1 | . . . . . . . . . . . . . . . 1 . . . . . . Assimilate 5 | . . . 1 . . . . . . 2 . 1 . . 1 . . . . . . Botnet 10 | . 1 . 1 . . . 2 . . 1 1 . . . 2 . . . 1 . 1 Detonate 1 | . . . . . . . . . . 1 . . . . . . . . . . . Disrupt 2 | . . . . . . . . . . . . . . . 2 . . . . . . Operators 5 | . 1 . 1 . . . 1 . . . . . . . 1 . . . . . 1 Skim 2 | . 2 . . . . . . . . . . . . . . . . . . . . Sabotage 3 | . . . . . . . . . . . . . . . . . . 3 . . . Fabricators 10 | . . . . . . . . 2 . 3 1 2 . 2 . . . . . . . Prioritize 5 | . . . . . . . . . . 1 . 2 . 2 . . . . . . . Liberate 2 | . . . . . . . . 1 . 1 . . . . . . . . . . . Fabnet 2 | . . . . . . . . 1 . 1 . . . . . . . . . . . Recompile 1 | . . . . . . . . . . . 1 . . . . . . . . . . Repair Stations 1 | . . . . . . . . . . . . 1 . . . . . . . . . Patch 1 | . . . . . . . . . . . . 1 . . . . . . . . . Recycling Units 2 | . . . . . . . . . . . 1 . . 1 . . . . . . . Tunnel 2 | . . . . . . . . . . . 1 . . 1 . . . . . . . Scanalyzers 2 | . . . . . . . . . . . 1 . . . . . . . 1 . . Extract 2 | . . . . . . . . . . . 1 . . . . . . . 1 . . Garrison Access . | . . . . . . . . . . . . . . . . . . . . . . Data Cores Recovered 3 | . . . . . . . 2 . . . 1 . . . . . . . . . . Used 2 | . . . . . . . 1 . . . 1 . . . . . . . . . . Hacking Detections 63 | . 4 . 3 . . . 8 2 . 10 6 4 . 7 5 . . 1 3 6 4 Full Trace Events 31 | . 2 . 2 . . . 2 2 . 3 4 3 . 5 3 . . . 1 3 1 Feedback Events 5 | . . . 1 . . . . . . 1 . . . 1 1 . . . . 1 . Corruption 4 | . . . 1 . . . . . . 1 . . . 1 1 . . . . . . Hackware Fried 1 | . . . . . . . . . . . . . . . . . . . . 1 . Feedback Blocked . | . . . . . . . . . . . . . . . . . . . . . . Robot Schematics Acquired . | . . . . . . . . . . . . . . . . . . . . . . Robots Built . | . . . . . . . . . . . . . . . . . . . . . . Authchips . | . . . . . . . . . . . . . . . . . . . . . . Time . | . . . . . . . . . . . . . . . . . . . . . . Total Robot Build Rating . | . . . . . . . . . . . . . . . . . . . . . . Part Schematics Acquired 16 | . . . . . . . . 2 . . 4 . . 2 1 . . . 7 . . Parts Built 7 | . . . . . . . . . . 1 . 2 . 3 . . . . . 1 . Authchips . | . . . . . . . . . . . . . . . . . . . . . . Time 386 | . . . . . . . . . . 58 . 52 . 230 . . . . . 46 . Total Part Build Rating 50 | . . . . . . . . . . 3 . 12 . 26 . . . . . 9 . Part Studies Acquired 13 | . . . 2 . . . 3 1 . . 3 . . 1 . . . . 1 2 . Parts Repaired 2 | . . . . . . . . . . . . . . . . . . . 2 . . Time 130 | . . . . . . . . . . . . . . . . . . . 130 . . Parts Recycled 1 | . . . . . . . . . . . . . . . . . . . . 1 . Recycled Matter 295 | . . . . . . . . 2 . 244 . . . . . . . . . 49 . Retrieved Matter 295 | . . . . . . . . 2 . 244 . . . . . . . . . 49 . Retrieved Components 1 | . . . . . . . . . . . . . . 1 . . . . . . . Parts Scanalyzed 6 | . . . . . . . . 2 . . 2 . . 2 . . . . . . . Part Schematics Acquired 6 | . . . . . . . . 2 . . 2 . . 2 . . . . . . . Parts Damaged 1 | . . . . . . . . 1 . . . . . . . . . . . . . Bothacking | -11 -10 -10 -9 -9 -9 -8 -8 -7 -7 -7 -6 -5 -5 -5 -5 -5 -5 -5 -4 -3 -2 ------------ Run | Yrd Mat Min Mat Min Exi Min Mat Fac Was Fac Fac Fac Was Fac Ext Cet Arc Hub Fac Res Res Used RIF Installer . | . . . . . . . . . . . . . . . . . . . . . . Robots Hacked 8 | . . . . . . . . . . . 2 . . 2 4 . . . . . . Non-combat . | . . . . . . . . . . . . . . . . . . . . . . Combat 8 | . . . . . . . . . . . 2 . . 2 4 . . . . . . Robot Hacks Applied . | . . . . . . . . . . . . . . . . . . . . . . Relay Couplers Released 2 | . . . . . . . . . . . . . . . . . . . . . 2 Machine Destruction 2 | . . . . . . . . . . . . . . . . . . . . . 2 Fabnet Peak Effective % 6 | . . . . . . . . . . . 6 2 2 2 2 2 2 2 . . . Autooverrided 8 | . . . . . . . . . . . 2 . . 2 4 . . . . . . Robots Rewired 7 | . . . . . . . . . . . 1 . . . 6 . . . . . . Allies Hacked . | . . . . . . . . . . . . . . . . . . . . . . Hacks Repelled . | . . . . . . . . . . . . . . . . . . . . . . Allies | -11 -10 -10 -9 -9 -9 -8 -8 -7 -7 -7 -6 -5 -5 -5 -5 -5 -5 -5 -4 -3 -2 -------- Run | Yrd Mat Min Mat Min Exi Min Mat Fac Was Fac Fac Fac Was Fac Ext Cet Arc Hub Fac Res Res Total Allies 50 | . . . . . . . . . . 2 3 1 20 2 17 5 . . . . . Largest Group 20 | . . . . . . . . . . 2 2 1 20 20 11 6 5 2 . . . Highest-Rated Group 745 | . . . . . . . . . . 52 58 26 745 745 350 639 524 180 . . . Highest-Rated Ally 159 | . . . . . . . . . . 26 41 26 46 46 159 159 152 96 . . . Total Orders . | . . . . . . . . . . . . . . . . . . . . . . Ally Attacks 376 | . . . . . . . . . . 13 17 9 5 113 118 58 16 27 . . . Total Damage 12150 | . . . . . . . . . . 676 500 523 135 3569 2536 1920 972 1319 . . . Kills 68 | . . . . . . . . . . 7 1 2 1 20 17 8 5 7 . . . Allies Corrupted 4 | . . . . . . . . . . . 1 . . 3 . . . . . . . Allies Melted 4 | . . . . . . . . . . 1 1 2 . . . . . . . . . Turrets Deployed 3 | . . . . . . . . . . 1 . 2 . . . . . . . . . Intel | -11 -10 -10 -9 -9 -9 -8 -8 -7 -7 -7 -6 -5 -5 -5 -5 -5 -5 -5 -4 -3 -2 ------- Run | Yrd Mat Min Mat Min Exi Min Mat Fac Was Fac Fac Fac Was Fac Ext Cet Arc Hub Fac Res Res Active Infowar (turns) 1452 | . . 26 708 51 184 . 2 2 . . 108 . . . 134 . . . . 22 215 Optics 371 | . . . . . . . . . . . . . . . 134 . . . . 22 215 Sensors 2 | . . . . . . . 2 . . . . . . . . . . . . . . IFF 102 | . . . . . . . . . . . 102 . . . . . . . . . . Terrain 99 | . . . . . . . . . . . 99 . . . . . . . . . . Seismic 969 | . . 26 708 51 184 . . . . . . . . . . . . . . . . ECM 2 | . . . . . . . . 2 . . . . . . . . . . . . . Robot Analysis Total 9 | . . . 1 . . . 2 . . 1 2 1 . 1 1 . . . . . . Derelict Logs Recovered 3 | . . 2 . 1 . . . . . . . . . . . . . . . . . Drone Launches . | . . . . . . . . . . . . . . . . . . . . . . Drone Recoveries . | . . . . . . . . . . . . . . . . . . . . . . Exploration | -11 -10 -10 -9 -9 -9 -8 -8 -7 -7 -7 -6 -5 -5 -5 -5 -5 -5 -5 -4 -3 -2 ------------- Run | Yrd Mat Min Mat Min Exi Min Mat Fac Was Fac Fac Fac Was Fac Ext Cet Arc Hub Fac Res Res Turns Passed 7306 | . 542 157 728 51 271 98 738 228 45 307 484 242 162 543 352 467 200 344 763 336 248 Spaces Moved 8757 | 1 345 213 639 49 322 111 583 369 126 658 1088 327 136 953 760 218 103 185 414 755 402 Core 349 | . . . . . . . 34 . . . . . . . . . . . 163 1 151 Treads 493 | . . . . . . . . . . . . . . . . 59 103 185 146 . . Legs 329 | 1 317 . . . . . . . . . . . . . . 11 . . . . . Wheels 1154 | . . . 247 49 322 111 425 . . . . . . . . . . . . . . Hover 639 | . 28 213 392 . . . . . . . . . . . . . . . 6 . . Flight 5793 | . . . . . . . 124 369 126 658 1088 327 136 953 760 148 . . 99 754 251 Fastest Speed 23 | 120 56 56 52 80 80 80 31 29 29 26 26 23 26 23 23 26 160 160 42 35 35 Average Speed 53 | 120 115 56 67 87 80 80 88 29 29 27 26 25 26 26 26 119 160 160 110 39 42 Slowest Speed 350 | 120 180 56 180 95 95 95 350 32 29 104 29 26 26 91 91 190 160 160 240 200 120 Overloaded Moves 78 | . . . . . . . . . . . . 30 . 6 42 . . . . . . Propulsion Burnouts . | . . . . . . . . . . . . . . . . . . . . . . Robots Hopped 50 | . . . . . . . 5 2 1 3 15 . . . 8 . . . 5 9 2 Potential Cave-ins . | . . . . . . . . . . . . . . . . . . . . . . Cave-ins Triggered 1 | . . . 1 . . . . . . . . . . . . . . . . . . Exploration Rate (%) 39 | 2 62 50 66 14 61 29 51 13 79 17 26 11 68 24 69 76 76 23 16 27 11 Regions Visited 21 Branch Regions 8 Pre-discovered Areas 3 | . . 1 . . . . . . . . 1 . . 1 . . . . . . . Known Exits Taken 8 | . . 1 . 1 . . 1 . . 1 . . . 1 1 . . 1 1 . . Unknown Exits Taken 9 | 1 1 . 1 . 1 1 . . . . 1 . . . . 1 1 . . 1 . Scrap Searched 3 | . . 1 . 1 . 1 . . . . . . . . . . . . . . . Spaces Dug 23 | . . . . 15 . . . . . 1 2 1 . 4 . . . . . . . Terrain Destroyed 651 | . 5 . 79 15 . . 153 63 18 9 2 1 . 76 47 41 . 8 97 . 37 Melee 8 | . . . . . . . . . . 1 2 1 . 4 . . . . . . . Projectile 8 | . . . . . . . . . . . . . . . . . . . 8 . . AOE 635 | . 5 . 79 15 . . 153 63 18 8 . . . 72 47 41 . 8 89 . 37 Terrain Rammed . | . . . . . . . . . . . . . . . . . . . . . . Walls Destroyed . | . . . . . . . . . . . . . . . . . . . . . . Machines Disabled . | . . . . . . . . . . . . . . . . . . . . . . Actions | -11 -10 -10 -9 -9 -9 -8 -8 -7 -7 -7 -6 -5 -5 -5 -5 -5 -5 -5 -4 -3 -2 --------- Run | Yrd Mat Min Mat Min Exi Min Mat Fac Was Fac Fac Fac Was Fac Ext Cet Arc Hub Fac Res Res Total 10713 | . 414 228 777 54 334 117 738 474 130 763 1237 477 259 1197 871 419 125 203 652 781 463 Wait 1127 | . 2 3 2 1 . 2 67 68 4 74 113 110 113 175 27 165 6 . 148 22 25 Move 8643 | . 344 212 638 48 321 110 573 365 123 652 1059 327 135 952 743 217 102 184 403 737 398 Hop 46 | . . . . . . . 4 2 1 3 13 . . . 8 . . . 5 8 2 Pick Up 61 | . 6 1 7 2 4 . 4 2 . 4 7 . . 7 7 1 4 . 3 1 1 Fast Attach 98 | . 3 1 10 . . 2 20 4 . 5 4 . 2 9 7 9 1 . 6 9 6 Attach 57 | . 3 . 5 . 1 1 . 5 . 1 2 3 1 6 12 6 . . 6 2 3 Detach 49 | . 3 . 2 . 2 . . 5 . 2 . . 2 6 11 7 . . 4 1 4 Swap 63 | . 3 . 13 1 2 . 10 1 . 4 6 2 5 3 1 3 . 2 6 . 1 Drop 92 | . 8 . 8 . 4 1 11 . . 6 10 2 1 8 8 5 4 . 11 1 4 Fire 284 | . 38 11 92 2 . 1 48 11 2 . . . . 7 6 6 7 14 25 . 14 Melee 83 | . . . . . . . . . . 12 21 4 . 24 22 . . . . . . Ram 7 | . . . . . . . 1 . . . . . . . . . . . 1 . 5 Kick 4 | . 4 . . . . . . . . . . . . . . . . . . . . Crush 38 | . . . . . . . . . . . . . . . . . 1 3 34 . . Escape Stasis 40 | . . . . . . . . 11 . . . 29 . . . . . . . . . Rewire 21 | . . . . . . . . . . . 2 . . . 19 . . . . . . Trap . | . . . . . . . . . . . . . . . . . . . . . . Miscellaneous . | . . . . . . . . . . . . . . . . . . . . . . Route ------- -11/Scrapyard -10/Materials (discovered 2 exits: *Mat / [*Min]) -10/Mines (discovered 2 exits: *Mat x2) -9/Materials (discovered 3 exits: *Mat / [*Min x2]) -9/Mines -9/Exiles (discovered 2 exits: [*Min x2]) -8/Mines -8/Materials (discovered 3 exits: *Fac x3) -7/Factory -7/Waste -7/Factory (discovered 4 exits: *Fac x4) -6/Factory (discovered 3 exits: *Fac / *Low x2) -5/Factory -5/Waste -5/Factory (discovered 4 exits: *Upp x2 / *Ext x2) -5/Extension (discovered 2 exits: *Fac / *Cet) -5/Cetus (discovered 2 exits: *Fac / *Arc) -5/Archives (discovered 2 exits: *Hub x2) -5/Hub_04(d) (discovered 4 exits: *Fac x4) -4/Factory (discovered 4 exits: *Res x4) -3/Research (discovered 3 exits: *Res x3) -2/Research (discovered 2 exits: Acc x2) History --------- Turn | Location | Event 1 | -11/Scrapyard | Discovered new exit (range 0) 1 | -11/Scrapyard | Entered Materials 234 | -10/Materials | Discovered new exit (range 10) 308 | -10/Materials | Build established: Mutant 538 | -10/Materials | Discovered new exit (range 10) 543 | -10/Materials | Entered Mines 552 | -10/Mines | Discovered new exit (range 13) 558 | -10/Mines | Identified exit to Materials 581 | -10/Mines | Found a Scrap Suit stashed away for nefarious purposes 590 | -10/Mines | Found Scrap Suit 626 | -10/Mines | Learned location of Zion (-6) 700 | -10/Mines | Entered Materials 700 | -9/Materials | Evolved 2 slots: Propulsion x1, Utility x1 762 | -9/Materials | Discovered new exit (range 3) 1052 | -9/Materials | Crushed by falling debris 1052 | -9/Materials | System corruption reached 10% 1083 | -9/Materials | Lost 4 parts (2n1u1w) 1086 | -9/Materials | Discovered new exit (range 14) 1108 | -9/Materials | Discovered new exit (range 15) 1235 | -9/Materials | Core integrity fell below 50% 1428 | -9/Materials | Entered Mines 1437 | -9/Mines | Identified exit to Exiles 1474 | -9/Mines | Deemed a non-threat by the Exiles lab entrance 1479 | -9/Mines | Entered Exiles 1495 | -9/Exiles | Discovered new exit (range 15) 1507 | -9/Exiles | Met 8R-AWN 1519 | -9/Exiles | Met EX-HEX 1543 | -9/Exiles | Met EX-BIN 1555 | -9/Exiles | Aligned with FarCom system 1555 | -9/Exiles | Given EX-Vault access code 1575 | -9/Exiles | Opened EX-Vault 1580 | -9/Exiles | Found Deploy-a-Sentry 1582 | -9/Exiles | Found Deploy-a-Sentry 1584 | -9/Exiles | Found Deploy-a-Sentry 1608 | -9/Exiles | Warned to stay clear of 0b10 Research branches 1714 | -9/Exiles | Met EX-DEC 1742 | -9/Exiles | Discovered new exit (range 10) 1750 | -9/Exiles | Left Exiles lab with Deploy-a-Sentry 1750 | -9/Exiles | Entered Mines 1825 | -8/Mines | Discovered new exit (range 12) 1848 | -8/Mines | Entered Materials 1848 | -8/Materials | Evolved 2 slots: Propulsion x1, Utility x1 2161 | -8/Materials | Lost 3 parts (3n) 2231 | -8/Materials | Lost 3 parts (1p2n) 2323 | -8/Materials | Identified exit to Factory 2408 | -8/Materials | Lost 4 parts (3n1w) 2586 | -8/Materials | Entered Factory 2586 | -7/Factory | Evolved 2 slots: Utility x2 2624 | -7/Factory | Identified exit to DSF 2814 | -7/Factory | Sucked down chute 2814 | -7/Factory | Entered Waste 2829 | -7/Waste | EMP discharged 2834 | -7/Waste | Spotted C-40 Crusher 2834 | -7/Waste | Spotted C-40 Crusher 2834 | -7/Waste | Spotted C-40 Crusher 2846 | -7/Waste | Spotted C-40 Crusher 2850 | -7/Waste | Spotted C-40 Crusher 2853 | -7/Waste | Spotted C-40 Crusher 2854 | -7/Waste | Discovered new exit (range 16) 2859 | -7/Waste | Entered Factory 2886 | -7/Factory | Build established: Hacker-Sprinter 2898 | -7/Factory | DAS Turret deployed 2904 | -7/Factory | System corruption reached 10% 2934 | -7/Factory | Lost 4 parts (1p1n1u1w) 2937 | -7/Factory | Identified exit to Factory 3073 | -7/Factory | Fabricated Hvy. EM Shotgun (x1) 3166 | -7/Factory | Entered another Factory area 3166 | -6/Factory | Evolved 2 slots: Utility x2 3220 | -6/Factory | Discovered new exit (range 2) 3403 | -6/Factory | Identified exit to Lower Caves 3403 | -6/Factory | Watched by a mysterious "MATRIX" hacker. 3578 | -6/Factory | Build established: Wizard-Sprinter 3645 | -6/Factory | Discovered new exit (range 12) 3650 | -6/Factory | Entered another Factory area 3650 | -5/Factory | Evolved 2 slots: Utility x2 3698 | -5/Factory | Fabricated Adv. Hacking Suite (x1) 3744 | -5/Factory | Fabricated Adv. Hacking Suite (x1) 3749 | -5/Factory | DAS Turret deployed 3750 | -5/Factory | DAS Turret deployed 3892 | -5/Factory | Manually triggered Chute Trap 3892 | -5/Factory | Sucked down chute 3892 | -5/Factory | Entered Waste 3893 | -5/Waste | Joined by Warlord forces that had cleared the area 3954 | -5/Waste | Discovered new exit (range 12) 3956 | -5/Waste | Found Prototype Launcher 3956 | -5/Waste | Identified Point Singularity Launcher 3964 | -5/Waste | Found Prototype Device 3964 | -5/Waste | Identified System Purifier 3992 | -5/Waste | A Compactor rumbled back to life 3992 | -5/Waste | Allies destroyed C-40 Crusher 4054 | -5/Waste | Entered Factory 4054 | -5/Factory | Accompanied by 20 allies 4080 | -5/Factory | System corruption reached 10% 4110 | -5/Factory | Lost 3 parts (3u) 4136 | -5/Factory | Lost 3 allies 4209 | -5/Factory | Fabricated Point Singularity Launcher (x1) 4292 | -5/Factory | Central database locked down 4351 | -5/Factory | Fabricated Gamma Bomb Array (x1) 4407 | -5/Factory | Fabricated Point Singularity Launcher (x1) 4461 | -5/Factory | Lost 5 allies 4470 | -5/Factory | P-80 Master assimilated allied WC-00E(g) 4471 | -5/Factory | P-80 Master assimilated allied QT-HU3(g) 4483 | -5/Factory | Found Prototype Launcher 4512 | -5/Factory | Identified exit to Upper Caves 4512 | -5/Factory | Identified exit to Extension 4560 | -5/Factory | Spotted B-75 Beast 4571 | -5/Factory | Identified Smartbomb Launcher 4597 | -5/Factory | Entered Extension 4612 | -5/Extension | Central database locked down 4613 | -5/Extension | Rescued a captive Derelict 4614 | -5/Extension | Disrupted transfer network 4615 | -5/Extension | Rescued a captive Derelict 4620 | -5/Extension | Targeted by mysterious "MATRIX" hacker. 4675 | -5/Extension | Rescued a captive Derelict 4685 | -5/Extension | Rescued a captive Derelict 4722 | -5/Extension | Rescued a captive Derelict 4725 | -5/Extension | Rescued a captive Derelict 4782 | -5/Extension | Local machine network offline 4785 | -5/Extension | Spotted B-75 Beast 4788 | -5/Extension | Spotted B-75 Beast 4828 | -5/Extension | Rescued A7 4897 | -5/Extension | First assault squad dispatched 4926 | -5/Extension | Discovered new exit (range 10) 4926 | -5/Extension | Discovered new exit (range 6) 4930 | -5/Extension | Identified exit to Cetus 4931 | -5/Extension | Identified exit to Factory 4949 | -5/Extension | Entered Cetus 4949 | -5/Cetus | Accompanied by 1 ally (A7) 4954 | -5/Cetus | Acquired a Cetus Manufacturing Module code from A7 4954 | -5/Cetus | Spotted Cetus Guard 4955 | -5/Cetus | Spotted Cetus Guard 4959 | -5/Cetus | Destroyed Cetus Guard 4959 | -5/Cetus | Spotted Cetus Guard 4965 | -5/Cetus | Allies destroyed Cetus Guard 4970 | -5/Cetus | Spotted Cetus Guard 4977 | -5/Cetus | Allies destroyed Cetus Guard 4986 | -5/Cetus | Allies destroyed Cetus Guard 4999 | -5/Cetus | Lost 4 parts (2n2u) 5028 | -5/Cetus | Started Cetus Manufacturing Module 5053 | -5/Cetus | Manufactured an Enhanced Grunt 5078 | -5/Cetus | Manufactured an Enhanced Grunt 5103 | -5/Cetus | Manufactured an Enhanced Grunt 5121 | -5/Cetus | Build established: Wizard-Mutant 5128 | -5/Cetus | Manufactured an Enhanced Grunt 5153 | -5/Cetus | Manufactured an Enhanced Grunt 5203 | -5/Cetus | Escorted A7 to Cetus Mainframe 5225 | -5/Cetus | Discovered new exit (range 15) 5249 | -5/Cetus | Spotted Cetus Guard 5252 | -5/Cetus | Spotted Cetus Guard 5254 | -5/Cetus | Spotted Cetus Guard 5259 | -5/Cetus | Spotted Cetus Guard 5274 | -5/Cetus | Allies destroyed Cetus Guard 5280 | -5/Cetus | Allies destroyed Cetus Guard 5281 | -5/Cetus | Allies destroyed Cetus Guard 5283 | -5/Cetus | Allies destroyed Cetus Guard 5292 | -5/Cetus | Discovered exit to Factory (range 15) 5301 | -5/Cetus | Met Revision 17 5371 | -5/Cetus | Found Prototype Device 5371 | -5/Cetus | Identified Exp. Thermal Shield 5416 | -5/Cetus | Entered Archives 5416 | -5/Archives | Accompanied by 5 allies (A7) 5421 | -5/Archives | Received a hacking code to weaken MAIN.C 5482 | -5/Archives | Unable to access archive contents 5531 | -5/Archives | Discovered new exit (range 16) 5578 | -5/Archives | Discovered new exit (range 15) 5589 | -5/Archives | Build established: Hacker-Mutant 5616 | -5/Archives | Entered Hub_04(d) 5616 | -5/Hub_04(d) | Accompanied by 2 allies 5642 | -5/Hub_04(d) | Network Hub disabled 5706 | -5/Hub_04(d) | Core integrity fell below 50% 5887 | -5/Hub_04(d) | Network Hub disabled 5960 | -5/Hub_04(d) | Entered Factory 5960 | -4/Factory | Evolved 2 slots: Power x1, Weapon x1 5976 | -4/Factory | Found Powered Armor 6159 | -4/Factory | Repaired Hyp. Coil Gun 6235 | -4/Factory | Repaired Quantum Reactor 6291 | -4/Factory | Spotted B-86 Titan 6300 | -4/Factory | Destroyed B-86 Titan 6589 | -4/Factory | Lost 5 parts (1p2u2w) 6594 | -4/Factory | Identified exit to Research 6652 | -4/Factory | Spotted B-86 Titan 6723 | -4/Factory | Entered Research 6723 | -3/Research | Evolved 2 slots: Propulsion x2 6835 | -3/Research | Discovered new exit (range 2) 6862 | -3/Research | Spotted B-86 Titan 6923 | -3/Research | Revision forces began assault on 0b10 6973 | -3/Research | Fabricated Adv. Heavy Siege Treads? 6980 | -3/Research | Lost 3 parts (1p2n) 6994 | -3/Research | Spotted B-86 Titan 7001 | -3/Research | Discovered new exit (range 15) 7013 | -3/Research | Discovered new exit (range 15) 7043 | -3/Research | Lost 3 allies 7044 | -3/Research | Imp. Hacking Suite fried by hacking feedback 7059 | -3/Research | Entered another Research area 7059 | -2/Research | Evolved 2 slots: Utility x2 7079 | -2/Research | Identified exit to Access 7222 | -2/Research | Lost 3 parts (2n1u) 7271 | -2/Research | Core integrity fell below 50% 7290 | -2/Research | Core integrity fell below 20% 7307 | -2/Research | Destroyed by Y-72 Warden with Quantum Rifle Last Messages --------------- 07274_ Enh. Optical Array severed. 07275_ Acquired 23 matter. 07276_ Slug penetrates Wall. 07279_ System Shield severed. 07287_ Connecting with Garrison Access... You leave a trail of Behemoth-sized crumbs, you know. 07287_ ALERT: Suspicious activity at Garrison Access R001. Dispatching Investigation squad. 07287_ Slammed into C-57 Dissector. 07293_ Destroyed Adv. Surge Thruster. 07293_ C-57 Dissector destroyed. 07293_ ALERT: Garrison Access compromised, dispatching multiple assault carriers. 07293_ Garrison Access disabled. 07293_ Relay Coupler [NC] tumbles out of Garrison Access. 07293_ Relay Coupler [Grunt] tumbles out of Garrison Access. 07293_ C-57 Dissector destroyed. 07300_ O-24 Administrator: "IFF HANDSHAKE FAILED. SECURING TERMINAL." 07305_ Penetrated by Slug. 07305_ Slug penetrates Wall. Map ----- +----------------------------------------------------+ | ??????????# #????????????????????????????????????? | | ??????????# ####?????????????????????????????????? | | ??????????# #?????????????????????????????????? | | ?########?#### #?????????????????????????????????? | | ?# #????# #?????????????????????????????????? | | ?# #????# #?????????????????????????????????? | | ?# = #????# #?????????????????????????????????? | | ?# * #????# #?######??????????????????????????? | | ?# #????# #? #??????????????????????????? | | ?# #????# # #??????????????????????????? | | ?####+#######" # #?###############??????????? | | ????# " #?# """ """ #? ????????? | | ????# % # #?# """ """ # ??????? | | ????# = # #?# """ """ # #?????? | | ??### ########## # #?????? | | ??# w # ## # #?????? | | ??# # ## # #?????? | | ??# % + ## ! # #?????? | | ??# # ## = # #?????? | | ??# [ # ## # o?????? | | ??########## ##? ## # #?????? | | ???????????# T#?####### """T""" # #?????? | | ???????????# #???????#+########+#### #####+# | | ?????????### ########?# #????# | | ????????## # #?# #????# | | ????????# ! #?#@#????# | | ????????## #?#h#????# | | ?????????# #?# #????####### ### | | ?????????# # ### ########## # | | ?????????# ##h + [# | | ?????????### ######### Y######### # | | ???????????# #???????# #???????# # | | ??????????## #???????# ######### " " # | | ###########" #??????## # ## ""G"" # | | # """" ## ######## ## # | | # """" #! # Y = !## # | | # """" # # # ############ | | # """" + H # / #?# # | | # % " # #?# # | | # ! ! % # ######?# # | | " ### "## #?????# + | | # #?# ### # #?????# # | | ###########?# #?### ##?????# # | | ????????????# #?# # #??????# # | | ????????????# ### ######?# ##### | | ????????????# #?# #???? | | ????????????##### #######+####???? | | ????????????????# ## # #?###### | | ????????????????### + # # | | ??????????????????# # # # ## # # | +----------------------------------------------------+ Best States ------------- Heat Dissipation 62 Energy Generation 43 Energy Capacity 590 Matter Stores 300 Matter Capacity 300 Sight Range 22 Terrain Scan Range 20 Terrain Scan Density 210 Corruption Block 40 Armor Coverage 1075 Resistance: TH 30 Phase Shifting 10 Evasion (%) 72 Targeting Accuracy 6 Melee Accuracy 5 Launcher Accuracy 30 Recoil Reduction 2 Salvage Targeting 1 Offensive Hacking 86 Defensive Hacking 30 Authchip Count 1 Item Schematics ----------------- Hvy. EM Shotgun | -7/Factory | Scanalyzed ECM Suite | -7/Factory | Scanalyzed Imp. Heavy Machine Gun | -6/Factory | Extracted Adv. Hacking Suite | -6/Factory | Hacked Hacking Suite | -6/Factory | Scanalyzed Adv. Terrain Scanner | -6/Factory | Scanalyzed Point Singularity Launcher | -5/Factory | Scanalyzed Enh. Fission Core | -5/Factory | Scanalyzed Adv. System Shield | -5/Extension | Hacked Railgun | -4/Factory | Extracted Matter Filter | -4/Factory | Extracted Machine Analyzer | -4/Factory | Extracted Imp. System Restoration Module | -4/Factory | Extracted Adv. Power Amplifier | -4/Factory | Extracted Adv. Medium Treads | -4/Factory | Extracted Imp. Particle Charger | -4/Factory | Extracted Robot Schematics ------------------ None Fabricated ------------ Hvy. EM Shotgun | x1 | -7/Factory Adv. Hacking Suite | x1 | -5/Factory Adv. Hacking Suite | x1 | -5/Factory Point Singularity Launcher | x1 | -5/Factory Gamma Bomb Array | x1 | -5/Factory | Preloaded Point Singularity Launcher | x1 | -5/Factory Adv. Heavy Siege Treads | x1 | -3/Research | Preloaded Repaired ---------- Hyp. Coil Gun | 20% | -4/Factory Quantum Reactor | 50% | -4/Factory Studied --------- Hover Unit | -9/Materials | Hacked EM Shotgun | -9/Materials | Hacked Wheel | -8/Materials | Hacked Mni. Grenade Launcher | -8/Materials | Hacked Imp. Ion Engine | -8/Materials | Hacked VTOL Module | -7/Factory | Hacked Cesium-ion Thruster | -6/Factory | Hacked Lgt. Nuclear Core | -6/Factory | Hacked Chainsword | -6/Factory | Hacked Mic. Antimatter Reactor | -5/Factory | Hacked Field Propulsion Drive | -4/Factory | Hacked Field Propulsion Array | -3/Research | Hacked Impulse Thruster Array | -3/Research | Hacked Alien Tech Used ----------------- None Achievements -------------- Deductive Reasoning Challenges ------------ None Game ------ Seed UltimateTractorLayer Manual? 0 Play Time 01:48:21 Cumulative 1259.1 hours Start 2026.02.26 @ 15:15:23 End 2026.03.01 @ 12:50:05 Sessions 3 Manual Loads 0 Difficulty Rogue Special Mode None Game No. 1544 Rogue 1260 Adventurer 124 Explorer 160 Win Type - Total 61 Types 47/0/8/4/1/0/0/1/0/0 Lore% 93 Gallery% 83 Achievement% 68 Wizard Run 0 Options --------- Layout 0 ASCII 0 Keyboard 1 Movement Numpad Keybinds 0 Fullscreen 2 Font 18/X11 Map View 76x50 Zoom Use 1% Tactical HUD 1 Map Filters NONE Filters NONE Steam 1 RUN: 5c9b65d8-f7fb-470d-94cc-62a984387a2d